Cogmind - Beta 15 @@@ ROGUE MODE // 2025.10.20 @ 14:42:00 Player: Kotyk77 Result: Destroyed by S-27 Virus with Autogun Performance ------------- Evolutions (5) 2500 Regions Visited (12) 2400 Robots Destroyed (62) 310 Value Destroyed (1814) 1814 Prototype IDs (7) 140 Alien Tech Used (0) 0 Bonus (72) 72 TOTAL SCORE: 7236 Bonus ------- Follower Combat Kills 72 Cogmind --------- Core Integrity 0/1000 Matter 8/300 Energy 99/100 System Corruption 8% Temperature Cool (0) Movement Core (50) Location -5/Factory Parts ------- > --- POWER (2) -------- (None) > --- PROPULSION (5) --- (None) > --- UTILITY (7) ------ (None) > --- WEAPON (3) ------- (None) > --- INVENTORY (5) ---- Target Analyzer Improved Propulsion Shielding EM Shield Improved System Restoration Module Neutron Cannon Peak State ------------ > --- POWER ------------ Improved Deuterium Engine Angular Momentum Engine > --- PROPULSION ------- Flexi-carbon Leg Flexi-carbon Leg Flexi-carbon Leg Armored Leg Armored Leg > --- UTILITY ---------- Large Storage Unit Enhanced Optical Array Advanced Sensor Array Improved Signal Interpreter Advanced Targeting Computer Transmission Jammer Improved Light Armor Plating > --- WEAPON ----------- Coil Gun Heavy Machine Gun Power Sword > --- INVENTORY -------- Deuterium Engine Flexi-carbon Leg Experimental Myomer Leg IFF Parser Improved Targeting Computer Target Analyzer Microactuators Cloaking Device Improved Propulsion Shielding Improved Light Armor Plating EM Shield Hacking Suite Improved System Restoration Module Heavy Plasma Cannon Power Maul [Rating: 79] Favorites ----------- Power Ion Engine Engine Ion Engine Power Core Micro Nuclear Core Propulsion Aluminum Leg Treads Improved Medium Treads Leg Aluminum Leg Wheel Wheel Hover Unit Gravmag System Utility Visual Processing Unit Device Seismic Detector Storage Small Storage Unit Processor Visual Processing Unit Protection Improved Light Armor Plating Weapon High-powered Shotgun Energy Gun Particle Gun Energy Cannon Neutron Cannon Ballistic Gun High-powered Shotgun Ballistic Cannon Improved Light Cannon Launcher Mini Grenade Launcher Special Weapon Mining Laser Impact Weapon Power Maul Slashing Weapon Katana Build | -11 -10 -10 -9 -9 -9 -8 -8 -7 -6 -5 -5 -5 ------- Run | Yrd Mat Min Mat Min Exi Min Mat Fac Fac Fac Was Fac Slots Evolved 10 | . . . 2 . . . 2 2 2 2 . . Power 1 | . . . . . . . . . 1 . . . Propulsion 3 | . . . . . . . 2 . 1 . . . Utility 5 | . . . 2 . . . . 1 . 2 . . Weapon 1 | . . . . . . . . 1 . . . . Parts Attached 95 | 8 2 . 21 . . 4 9 15 22 4 2 8 Power 13 | 1 . . 3 . . . 1 2 6 . . . Engine 12 | 1 . . 3 . . . 1 2 5 . . . Core 1 | . . . . . . . . . 1 . . . Reactor . | . . . . . . . . . . . . . Propulsion 29 | 3 . . 4 . . 2 4 4 8 . 2 2 Treads 3 | 1 . . . . . . . . 1 . 1 . Leg 22 | . . . 3 . . 2 4 4 6 . 1 2 Wheel 3 | 2 . . 1 . . . . . . . . . Hover 1 | . . . . . . . . . 1 . . . Flight . | . . . . . . . . . . . . . Utility 23 | 2 1 . 6 . . 1 . 5 3 3 . 2 Device 11 | 1 . . 2 . . . . 2 1 3 . 2 Storage 2 | 1 . . . . . . . 1 . . . . Processor 6 | . . . 2 . . 1 . 2 1 . . . Hackware . | . . . . . . . . . . . . . Protection 4 | . 1 . 2 . . . . . 1 . . . Artifact . | . . . . . . . . . . . . . Weapon 30 | 2 1 . 8 . . 1 4 4 5 1 . 4 Energy Gun 2 | . . . 2 . . . . . . . . . Energy Cannon 2 | . . . . . . . 1 . . . . 1 Ballistic Gun 15 | 2 1 . 5 . . 1 1 2 3 . . . Ballistic Cannon 2 | . . . . . . . 2 . . . . . Launcher 1 | . . . . . . . . 1 . . . . Special Weapon 2 | . . . 1 . . . . . . . . 1 Impact Weapon 2 | . . . . . . . . . 2 . . . Slashing Weapon 4 | . . . . . . . . 1 . 1 . 2 Piercing Weapon . | . . . . . . . . . . . . . Special Melee Weapon . | . . . . . . . . . . . . . Unidentified Prototypes 3 | . . . 1 . . . . . . . . 2 Parts Lost 31 | . . . 6 1 . . . 3 8 . 7 6 Power 2 | . . . . . . . . . 2 . . . Propulsion 13 | . . . 2 . . . . 1 5 . 3 2 Utility 7 | . . . 2 1 . . . 1 1 . 1 1 Weapon 9 | . . . 2 . . . . 1 . . 3 3 Highest Loss Streak 6 | . . . 4 1 . . . 2 2 . 6 6 To Critical Strikes . | . . . . . . . . . . . . . Average Backups 9 | 2 5 8 7 7 7 7 7 7 14 13 13 4 Power 1 | . 1 2 1 2 2 2 2 2 . 1 . . Propulsion 1 | 1 2 3 3 3 3 3 1 1 . 1 1 . Utility 4 | . 1 2 1 . . . . 1 9 9 9 3 Weapon 2 | . 1 1 1 2 2 2 3 2 3 2 1 . Tool/Special . | . . . . . . . . . . . . . Unused Backups 24 | . . . 3 . . . 2 . 7 . 8 4 Power 2 | . . . 2 . . . . . . . . . Propulsion . | . . . . . . . . . . . . . Utility 15 | . . . 1 . . . . . 3 . 7 4 Weapon 7 | . . . . . . . 2 . 4 . 1 . Tool/Special . | . . . . . . . . . . . . . Average Slot Usage (%) 93 | . 100 100 96 89 88 92 99 99 98 99 85 21 Engine 9 | . 14 14 11 11 11 11 9 7 11 11 7 . Treads 1 | . . . . . . . . . 3 . . . Leg 23 | . . . 11 22 22 22 35 29 27 29 24 5 Wheel 2 | . 28 28 9 . . . . . . . . . Device 6 | . 6 14 13 11 11 11 9 4 3 10 9 1 Storage 7 | . 14 14 11 11 11 11 9 7 6 5 4 . Processor 16 | . . . 6 11 11 15 18 24 20 17 16 10 Protection 2 | . 7 . 10 1 . . . . 2 5 4 . Ballistic Gun 14 | . 28 28 16 22 22 22 8 13 13 11 8 . Ballistic Cannon 1 | . . . . . . . 9 2 . . . . Launcher 1 | . . . . . . . . . 2 . . . Slashing Weapon 1 | . . . . . . . . 5 1 2 4 1 Peak Build Rating 79 | 7 8 8 15 12 11 20 24 39 69 78 79 54 Average Rating 34 | 5 7 8 11 11 11 14 21 34 55 77 68 20 On Entrance 24 | . 7 8 8 13 11 11 20 24 38 69 78 37 Naked Turns 19 | . . . . . . . . . . . . 19 Heaviest Build 61 | 13 15 14 20 17 17 18 21 35 59 61 61 9 Greatest Support 92 | 26 26 26 26 20 20 30 55 70 92 92 92 50 Greatest Overweight (x) 3 | 3 . . 1 . . . . . 1 . 1 2 Average Overweight (x) . | . . . . . . . . . . . . . Largest Inventory Capacity 15 | 8 8 8 8 8 8 8 8 15 15 15 15 5 Average Capacity 10 | 7 8 8 8 8 8 8 8 8 15 15 13 5 Most Carried 15 | 4 8 8 8 7 7 8 8 11 15 15 15 5 Average Carried 10 | 2 5 8 7 7 7 7 7 7 14 13 13 4 Final Capacity 15 | 8 8 8 8 8 8 8 8 15 15 15 5 5 Final Carried 15 | 4 8 8 8 7 7 8 8 11 15 15 5 5 Class Distribution -------------------- 70% | Mutant 12% | Gunner 5% | Scavenger-Mutant 5% | Assassin 4% | Derelict-Gunner Dominant Class ---------------- Mutant | -10/Materials Mutant | -10/Mines Mutant | -9/Materials Mutant | -9/Mines Mutant | -9/Exiles Mutant | -8/Mines Mutant | -8/Materials Mutant | -7/Factory Mutant | -6/Factory Assassin | -5/Factory Assassin | -5/Waste Mutant | -5/Factory Resources | -11 -10 -10 -9 -9 -9 -8 -8 -7 -6 -5 -5 -5 ----------- Run | Yrd Mat Min Mat Min Exi Min Mat Fac Fac Fac Was Fac Matter Collected 2029 | 189 41 . 533 81 . 76 194 412 463 35 . 5 Remotely . | . . . . . . . . . . . . . Salvage Created 2156 | 12 75 . 700 98 . 40 150 332 719 30 . . Parts 115 | 2 3 . 46 2 . 2 9 18 29 4 . . Haulers Intercepted 2 | . . . 1 . . . . 1 . . . . Recyclers Shooed 1 | . . . . . . . . 1 . . . . Parts Field Recycled . | . . . . . . . . . . . . . Retrieved Matter . | . . . . . . . . . . . . . Parts Self-Destructed . | . . . . . . . . . . . . . Prevented . | . . . . . . . . . . . . . Kills | -11 -10 -10 -9 -9 -9 -8 -8 -7 -6 -5 -5 -5 ------- Run | Yrd Mat Min Mat Min Exi Min Mat Fac Fac Fac Was Fac Combat Hostiles Destroyed 42 | . 2 . 15 2 . 1 4 10 8 . . . Guns 33 | . 2 . 15 2 . 1 . 8 5 . . . Cannons 5 | . . . . . . . 4 1 . . . . AOE 4 | . . . . . . . . 1 3 . . . Classes Destroyed 12 | 1 1 . 5 . . . 1 3 1 . . . Worker 7 | . . . . . . . . 1 5 1 . . Builder 2 | . . . . . . . . . 1 1 . . Tunneler 1 | 1 . . . . . . . . . . . . Hauler 2 | . . . 1 . . . . 1 . . . . Recycler 4 | . . . 1 . . . 1 . 2 . . . Watcher 4 | . . . 2 . . . . 1 1 . . . Swarmer 11 | . . . 4 . . . . 4 3 . . . Grunt 18 | . 2 . 9 2 . 1 1 3 . . . . Duelist 1 | . . . . . . . 1 . . . . . Sentry 7 | . . . 2 . . . 2 1 2 . . . Hunter 1 | . . . . . . . . 1 . . . . Programmer 4 | . . . . . . . . 1 3 . . . Best Kill Streak 6 | 1 2 . 6 2 . 1 3 4 4 1 . . Combat Bots Only 6 | . 2 . 6 1 . 1 2 4 3 . . . Max Kills in Single Turn 3 | 1 1 . 1 1 . 1 1 2 3 1 . . Gunslinging . | . . . . . . . . . . . . . Exploded 3 | . . . . . . . . 1 3 . . . Melee . | . . . . . . . . . . . . . Uniques/NPCs Destroyed . | . . . . . . . . . . . . . Combat | -11 -10 -10 -9 -9 -9 -8 -8 -7 -6 -5 -5 -5 -------- Run | Yrd Mat Min Mat Min Exi Min Mat Fac Fac Fac Was Fac Hostile Shots Fired 433 | . 4 . 104 19 . 3 16 63 103 . 6 115 Missed 125 | . 2 . 20 7 . 1 2 18 31 . . 44 Hits 308 | . 2 . 84 12 . 2 14 45 72 . 6 71 Melee 6 | . . . . . . . . . . . 6 . Projectile 302 | . 2 . 84 12 . 2 14 45 72 . . 71 AOE 5 | . . . . . . . . 3 . . . 2 Critical Strikes 15 | . 1 . 2 . . . . 2 3 . 2 5 Part Disruptions 1 | . . . . . . . . . 1 . . . Damage Taken 5583 | . 71 1 1010 175 . 91 209 876 1591 . 290 1269 Core 1740 | . 35 . 205 30 . . 30 138 296 . 102 904 Absorbed by Shields 18 | . . . . . . . . 18 . . . . Core Remaining (%) 77 | 100 . 86 . . . 41 94 80 65 . . . Volleys Fired 176 | 1 4 . 79 11 . 6 23 24 28 . . . Largest 3 | 2 2 . 2 2 . 2 2 3 3 . . . Hottest 120 | 40 40 . 120 46 . 46 66 80 90 . . . Shots Fired 340 | 2 8 . 132 22 . 12 46 54 64 . . . Gun 272 | 2 8 . 120 22 . 12 12 42 54 . . . Cannon 39 | . . . . . . . 34 5 . . . . Launcher 17 | . . . . . . . . 7 10 . . . Special 12 | . . . 12 . . . . . . . . . Kinetic 304 | 2 8 . 113 22 . 12 46 47 54 . . . Thermal 19 | . . . 19 . . . . . . . . . Explosive 17 | . . . . . . . . 7 10 . . . Electromagnetic . | . . . . . . . . . . . . . Robot Hit Streak 11 | 1 8 . 11 8 . 4 10 10 7 . . . Robot Miss Streak 7 | . . . 7 1 . 2 4 4 3 . . . Penetration Max . | . . . . . . . . . . . . . Secondary Targets 2 | . . . 1 . . . . 1 . . . . Max Gunslinging Chain 1 | . . . 1 . . . . 1 . . . . Shots Hit Robots 210 | 1 7 . 79 16 . 8 27 30 38 2 . 2 Core Hits 114 | 1 3 . 36 4 . 3 8 28 30 . . 1 Critical Kills 1 | . 1 . . . . . . . . . . . Critical Parts Destroyed 5 | . . . 1 1 . . . . 3 . . . Critical Strikes 8 | . 1 . 1 1 . . 1 . 3 . . 1 Destroy 5 | . 1 . 1 1 . . . . 2 . . . Blast 1 | . . . . . . . 1 . . . . . Smash 1 | . . . . . . . . . 1 . . . Sever 1 | . . . . . . . . . . . . 1 Melee Attacks 25 | . . . . . . . . 2 18 2 . 3 Impact 13 | . . . . . . . . . 12 1 . . Slashing 12 | . . . . . . . . 2 6 1 . 3 Piercing . | . . . . . . . . . . . . . Sneak Attacks 9 | . . . . . . . . . 7 2 . . Combat Hostiles . | . . . . . . . . . . . . . Follow-up Attacks . | . . . . . . . . . . . . . Damage Inflicted 4548 | 10 56 3 936 242 . 128 594 838 1483 183 . 75 Guns 2594 | 10 56 . 888 242 . 128 77 535 658 . . . Cannons 629 | . . . . . . . 517 112 . . . . Explosions 419 | . . . . . . . . 191 228 . . . Melee 852 | . . . . . . . . . 597 183 . 72 Ramming 6 | . . 3 . . . . . . . . . 3 Kinetic 3191 | 10 56 . 856 242 . 128 594 647 658 . . . Thermal 80 | . . . 80 . . . . . . . . . Explosive 419 | . . . . . . . . 191 228 . . . Electromagnetic . | . . . . . . . . . . . . . Impact 437 | . . . . . . . . . 348 89 . . Slashing 415 | . . . . . . . . . 249 94 . 72 Piercing . | . . . . . . . . . . . . . Highest Corruption 8 | . . . . . . . . 2 1 . . 8 Average Corruption 1 | . . . . . . . . 2 1 . . 5 Corruption Purged . | . . . . . . . . . . . . . Corruption Blocked . | . . . . . . . . . . . . . Effects 8 | . . . . . . . . . 5 . . 3 Message Errors 3 | . . . . . . . . . 2 . . 1 Matter Fused 3 | . . . . . . . . . 1 . . 2 Energy Discharges 1 | . . . . . . . . . 1 . . . Parts Fused 1 | . . . . . . . . . 1 . . . Overload Shots . | . . . . . . . . . . . . . Overflow Damage 338 | . . . . . . . . . 215 123 . . Projectiles . | . . . . . . . . . . . . . Explosions 6 | . . . . . . . . . 6 . . . Melee 332 | . . . . . . . . . 209 123 . . Knockbacks 6 | . . . . . . . 6 . . . . . Impact . | . . . . . . . . . . . . . Kinetic 6 | . . . . . . . 6 . . . . . Secondary . | . . . . . . . . . . . . . Self-Inflicted Damage 142 | . . 1 . . . . . 61 79 . . 1 Shots 5 | . . . . . . . . 3 2 . . . Rammed 2 | . . 1 . . . . . . . . . 1 Targets Rammed 2 | . . 1 . . . . . . . . . 1 Kicked . | . . . . . . . . . . . . . Crushed . | . . . . . . . . . . . . . Highest Temperature 257 | . 48 . 257 10 . 1 7 42 60 . . . Average Temperature 59 | . 23 . 90 3 . 1 3 21 19 . . . Received Heat Transfer 1119 | . 36 . 498 102 . 27 99 186 147 . . 24 Siege Activations . | . . . . . . . . . . . . . Martial Activations . | . . . . . . . . . . . . . Shielding Activations . | . . . . . . . . . . . . . Robots Disrupted . | . . . . . . . . . . . . . Combat Hostiles . | . . . . . . . . . . . . . Robots Corrupted 1 | . . . . . . . . . 1 . . . Combat Hostiles . | . . . . . . . . . . . . . Parts Fried 5 | . . . . . . . . . 4 1 . . Impact Corruptions 6 | . . . . . . . . . 5 1 . . Robots Melted . | . . . . . . . . . . . . . Combat Hostiles . | . . . . . . . . . . . . . Parts Melted . | . . . . . . . . . . . . . Heat Transferred 174 | . . . 174 . . . . . . . . . Parts Sabotaged . | . . . . . . . . . . . . . Parts Stolen . | . . . . . . . . . . . . . Parts Stripped . | . . . . . . . . . . . . . Power Chain Reactions . | . . . . . . . . . . . . . Alert | -11 -10 -10 -9 -9 -9 -8 -8 -7 -6 -5 -5 -5 ------- Run | Yrd Mat Min Mat Min Exi Min Mat Fac Fac Fac Was Fac Maximum Alert Level . | . . . . . . . . . . . . . Low Security (%) 100 | 100 100 100 100 100 . 100 100 100 100 100 100 100 Level 1 . | . . . . . . . . . . . . . Level 2 . | . . . . . . . . . . . . . Level 3 . | . . . . . . . . . . . . . Level 4 . | . . . . . . . . . . . . . Level 5 . | . . . . . . . . . . . . . High Security . | . . . . . . . . . . . . . Max Security . | . . . . . . . . . . . . . Peak Influence 180 | 5 50 6 180 90 . 51 71 133 142 53 8 15 Initial 60 | . . 6 . 60 . . 7 14 60 53 8 . Average 35 | 1 16 5 72 52 . 11 19 25 44 37 . 1 Influence Increases 1533 | 5 56 . 459 50 . 91 141 345 361 10 . 15 Destroy 0b10 Robot/C 880 | . 40 . 300 40 . 60 80 200 160 . . . Destroy 0b10 Robot/NC 100 | 5 . . 20 . . . 5 15 45 10 . . Destroy Leader 242 | . 10 . 66 10 . 10 30 54 62 . . . Allied During Kill 6 | . . . . . . 6 . . . . . . Successful Hack 22 | . 6 . 6 . . . 10 . . . . . Disable Machine 45 | . . . 30 . . . . 15 . . . . Destroy Structure 88 | . . . 7 . . . 1 46 34 . . . Partial Spotted 15 | . . . 15 . . . . . . . . . Lose Combat Pursuer 135 | . . . 15 . . 15 15 15 60 . . 15 Influence Decreases 1533 | 5 40 16 304 195 10 70 131 251 375 98 23 15 Entered New Map 284 | . . 10 . 95 10 . 14 17 65 58 15 . Time Decay 1120 | 5 40 6 255 90 . 50 117 224 270 40 8 15 Lost Part 109 | . . . 49 10 . . . 10 40 . . . Lost Ally 20 | . . . . . . 20 . . . . . . Squads Dispatched 13 | . . . 1 . . . 1 3 6 . . 2 Investigation 1 | . . . . . . . . . . . . 1 Extermination 5 | . . . . . . . . 1 3 . . 1 Reinforcement 4 | . . . 1 . . . 1 2 . . . . Assault . | . . . . . . . . . . . . . Garrison 3 | . . . . . . . . . 3 . . . Intercept . | . . . . . . . . . . . . . Searches Triggered . | . . . . . . . . . . . . . Construction Impeded . | . . . . . . . . . . . . . Haulers Reinforced . | . . . . . . . . . . . . . Active Scanning Responses . | . . . . . . . . . . . . . Cargo Convoy Interrupts . | . . . . . . . . . . . . . Stealth | -11 -10 -10 -9 -9 -9 -8 -8 -7 -6 -5 -5 -5 --------- Run | Yrd Mat Min Mat Min Exi Min Mat Fac Fac Fac Was Fac Distress Signals 2 | . . . . . . . 1 . 1 . . . Communications Jammed . | . . . . . . . . . . . . . Distress Signals . | . . . . . . . . . . . . . Times Spotted 99 | . 2 2 25 2 . 4 9 18 19 . 7 11 Peak Tracking Total 6 | . 2 2 6 2 . 3 3 4 5 . 5 4 Tactical Retreats 7 | . . . 1 . . 1 1 1 1 . 1 1 Traps | -11 -10 -10 -9 -9 -9 -8 -8 -7 -6 -5 -5 -5 ------- Run | Yrd Mat Min Mat Min Exi Min Mat Fac Fac Fac Was Fac Traps Triggered 5 | . 1 . . . . . . 1 1 1 . 1 Indirectly . | . . . . . . . . . . . . . Trap Hack Attempts . | . . . . . . . . . . . . . Triggered . | . . . . . . . . . . . . . Disarmed . | . . . . . . . . . . . . . Reprogrammed . | . . . . . . . . . . . . . Reused . | . . . . . . . . . . . . . Traps Extracted . | . . . . . . . . . . . . . Installed . | . . . . . . . . . . . . . Triggered . | . . . . . . . . . . . . . Machines | -11 -10 -10 -9 -9 -9 -8 -8 -7 -6 -5 -5 -5 ---------- Run | Yrd Mat Min Mat Min Exi Min Mat Fac Fac Fac Was Fac Machines Disabled 3 | . . . 2 . . . . 1 . . . . Max in Single Turn 1 | . . . 1 . . . . 1 . . . . Machines Repaired . | . . . . . . . . . . . . . Machines Dismantled . | . . . . . . . . . . . . . Machines Sabotaged . | . . . . . . . . . . . . . Overloaded Fab Kills . | . . . . . . . . . . . . . Hacking | -11 -10 -10 -9 -9 -9 -8 -8 -7 -6 -5 -5 -5 --------- Run | Yrd Mat Min Mat Min Exi Min Mat Fac Fac Fac Was Fac Machines Accessed 14 | . 2 . 3 . 2 . 3 2 1 . . 1 Terminals 12 | . 2 . 3 . . . 3 2 1 . . 1 Fabricators . | . . . . . . . . . . . . . Repair Stations . | . . . . . . . . . . . . . Recycling Units . | . . . . . . . . . . . . . Scanalyzers . | . . . . . . . . . . . . . Garrison Access . | . . . . . . . . . . . . . Total Hacks 39 | . 6 . 7 . 2 . 13 6 3 . . 2 Successful 15 | . 3 . 4 . 2 . 6 . . . . . Failed 24 | . 3 . 3 . . . 7 6 3 . . 2 Catastrophic 4 | . 1 . . . . . 2 1 . . . . Database Lockouts . | . . . . . . . . . . . . . Manual 29 | . 5 . 7 . . . 11 1 3 . . 2 Terminals 37 | . 6 . 7 . . . 13 6 3 . . 2 Fabricators . | . . . . . . . . . . . . . Repair Stations . | . . . . . . . . . . . . . Recycling Units . | . . . . . . . . . . . . . Scanalyzers . | . . . . . . . . . . . . . Garrison Access . | . . . . . . . . . . . . . Terminal Hacks 10 | . 3 . 2 . 2 . 3 . . . . . Record 2 | . . . . . 2 . . . . . . . Robot Analysis 3 | . 2 . 1 . . . . . . . . . Prototype ID Bank 2 | . 1 . . . . . 1 . . . . . Terminal Index 2 | . . . 1 . . . 1 . . . . . Locate Traps 1 | . . . . . . . 1 . . . . . Fabricator Hacks . | . . . . . . . . . . . . . Repair Station Hacks . | . . . . . . . . . . . . . Recycling Unit Hacks . | . . . . . . . . . . . . . Scanalyzer . | . . . . . . . . . . . . . Garrison Access Hacks . | . . . . . . . . . . . . . Unauthorized Hacks 5 | . . . 2 . . . 3 . . . . . Terminals 5 | . . . 2 . . . 3 . . . . . Botnet 5 | . . . 2 . . . 3 . . . . . Fabricators . | . . . . . . . . . . . . . Repair Stations . | . . . . . . . . . . . . . Recycling Units . | . . . . . . . . . . . . . Scanalyzers . | . . . . . . . . . . . . . Garrison Access . | . . . . . . . . . . . . . Data Cores Recovered . | . . . . . . . . . . . . . Used . | . . . . . . . . . . . . . Hacking Detections 10 | . 1 . 3 . . . 2 2 1 . . 1 Full Trace Events 1 | . . . . . . . . . . . . 1 Feedback Events . | . . . . . . . . . . . . . Feedback Blocked . | . . . . . . . . . . . . . Robot Schematics Acquired . | . . . . . . . . . . . . . Robots Built . | . . . . . . . . . . . . . Authchips . | . . . . . . . . . . . . . Time . | . . . . . . . . . . . . . Total Robot Build Rating . | . . . . . . . . . . . . . Part Schematics Acquired . | . . . . . . . . . . . . . Parts Built . | . . . . . . . . . . . . . Authchips . | . . . . . . . . . . . . . Time . | . . . . . . . . . . . . . Total Part Build Rating . | . . . . . . . . . . . . . Parts Repaired . | . . . . . . . . . . . . . Time . | . . . . . . . . . . . . . Parts Recycled . | . . . . . . . . . . . . . Recycled Matter . | . . . . . . . . . . . . . Retrieved Matter . | . . . . . . . . . . . . . Retrieved Components . | . . . . . . . . . . . . . Parts Scanalyzed . | . . . . . . . . . . . . . Part Schematics Acquired . | . . . . . . . . . . . . . Parts Damaged . | . . . . . . . . . . . . . Bothacking | -11 -10 -10 -9 -9 -9 -8 -8 -7 -6 -5 -5 -5 ------------ Run | Yrd Mat Min Mat Min Exi Min Mat Fac Fac Fac Was Fac Used RIF Installer . | . . . . . . . . . . . . . Robots Hacked . | . . . . . . . . . . . . . Non-combat . | . . . . . . . . . . . . . Combat . | . . . . . . . . . . . . . Robot Hacks Applied . | . . . . . . . . . . . . . Relay Couplers Released . | . . . . . . . . . . . . . Fabnet Peak Effective % . | . . . . . . . . . . . . . Robots Rewired . | . . . . . . . . . . . . . Allies Hacked . | . . . . . . . . . . . . . Hacks Repelled . | . . . . . . . . . . . . . Allies | -11 -10 -10 -9 -9 -9 -8 -8 -7 -6 -5 -5 -5 -------- Run | Yrd Mat Min Mat Min Exi Min Mat Fac Fac Fac Was Fac Total Allies 3 | . . . . 3 . . . . . . . . Largest Group 3 | . . . . 3 3 3 . . . . . . Highest-Rated Group 40 | . . . . 40 40 40 . . . . . . Highest-Rated Ally 16 | . . . . 16 16 16 . . . . . . Total Orders . | . . . . . . . . . . . . . Ally Attacks 19 | . . . . . . 19 . . . . . . Total Damage 262 | . . . . . . 262 . . . . . . Kills 2 | . . . . . . 2 . . . . . . Allies Corrupted . | . . . . . . . . . . . . . Allies Melted . | . . . . . . . . . . . . . Intel | -11 -10 -10 -9 -9 -9 -8 -8 -7 -6 -5 -5 -5 ------- Run | Yrd Mat Min Mat Min Exi Min Mat Fac Fac Fac Was Fac Active Infowar (turns) 4911 | 19 75 21 648 187 280 302 385 799 1708 97 184 206 Optics 4564 | . . . 416 187 280 302 385 799 1708 97 184 206 Sensors 253 | . . . . . . . . . . 95 158 . Seismic 2261 | 19 75 21 648 187 280 302 385 344 . . . . Cloaking 894 | . . . . . . . . . 893 1 . . Jamming 257 | . . . . . . . . . . 97 160 . Robot Analysis Total 3 | . 2 . 1 . . . . . . . . . Derelict Logs Recovered . | . . . . . . . . . . . . . Drone Launches . | . . . . . . . . . . . . . Drone Recoveries . | . . . . . . . . . . . . . Exploration | -11 -10 -10 -9 -9 -9 -8 -8 -7 -6 -5 -5 -5 ------------- Run | Yrd Mat Min Mat Min Exi Min Mat Fac Fac Fac Was Fac Turns Passed 5088 | 68 160 21 672 187 280 302 385 799 1708 97 184 225 Spaces Moved 3482 | 52 139 21 351 121 228 208 236 539 1108 71 155 253 Core 205 | 10 . . . . . . . . . . 18 177 Treads 1 | 1 . . . . . . . . . . . . Legs 2899 | . . . 175 121 228 208 236 539 1108 71 137 76 Wheels 377 | 41 139 21 176 . . . . . . . . . Hover . | . . . . . . . . . . . . . Flight . | . . . . . . . . . . . . . Fastest Speed 50 | 50 90 90 90 120 120 120 122 122 120 120 50 50 Average Speed 115 | 91 90 90 105 120 120 121 122 122 125 120 113 75 Slowest Speed 200 | 200 90 90 190 120 120 125 122 125 193 120 190 150 Overloaded Moves . | . . . . . . . . . . . . . Propulsion Burnouts . | . . . . . . . . . . . . . Robots Hopped . | . . . . . . . . . . . . . Potential Cave-ins . | . . . . . . . . . . . . . Cave-ins Triggered . | . . . . . . . . . . . . . Exploration Rate (%) 29 | 4 25 10 31 34 65 54 24 12 23 3 86 13 Regions Visited 12 Branch Regions 4 Pre-discovered Areas . | . . . . . . . . . . . . . Known Exits Taken 3 | . . . 1 . . . . 1 1 . . . Unknown Exits Taken 7 | 1 1 1 . 1 1 1 1 . . . . . Scrap Searched 1 | . . . . . . 1 . . . . . . Spaces Dug 13 | . . . 4 . . . . 1 8 . . . Terrain Destroyed 90 | . . . 7 . . . 1 51 31 . . . Melee 9 | . . . . . . . . 1 8 . . . Projectile 8 | . . . 7 . . . 1 . . . . . AOE 73 | . . . . . . . . 50 23 . . . Terrain Rammed . | . . . . . . . . . . . . . Walls Destroyed . | . . . . . . . . . . . . . Machines Disabled . | . . . . . . . . . . . . . Actions | -11 -10 -10 -9 -9 -9 -8 -8 -7 -6 -5 -5 -5 --------- Run | Yrd Mat Min Mat Min Exi Min Mat Fac Fac Fac Was Fac Total 4168 | 67 166 22 511 140 234 246 291 624 1343 79 163 282 Wait 244 | . 15 1 34 8 7 25 4 27 109 . 5 9 Move 3471 | 51 138 20 350 120 227 207 235 538 1107 71 154 253 Hop . | . . . . . . . . . . . . . Pick Up 62 | 4 5 . 8 . . 1 8 8 23 2 1 2 Fast Attach 34 | 7 . . 8 . . 1 . 2 9 . 2 5 Attach 24 | 1 . . 6 . . . 2 4 6 2 . 3 Detach 8 | 1 . . 3 . . . . 1 . . . 3 Swap 54 | 1 3 . 9 1 . 3 8 10 17 2 . . Drop 67 | 1 1 . 14 . . 3 11 7 26 . 1 3 Fire 176 | 1 4 . 79 11 . 6 23 24 28 . . . Melee 25 | . . . . . . . . 2 18 2 . 3 Ram 2 | . . 1 . . . . . . . . . 1 Kick . | . . . . . . . . . . . . . Crush . | . . . . . . . . . . . . . Escape Stasis 1 | . . . . . . . . 1 . . . . Rewire . | . . . . . . . . . . . . . Trap . | . . . . . . . . . . . . . Miscellaneous . | . . . . . . . . . . . . . Route ------- -11/Scrapyard -10/Materials -10/Mines -9/Materials -9/Mines -9/Exiles -8/Mines -8/Materials -7/Factory -6/Factory (discovered 2 exits: *Fac / *Ext) -5/Factory -5/Waste -5/Factory History --------- Turn | Location | Event 20 | -11/Scrapyard | Discovered new exit (range 16) 69 | -11/Scrapyard | Entered Materials 190 | -10/Materials | Discovered new exit (range 16) 229 | -10/Materials | Entered Mines 242 | -10/Mines | Discovered new exit (range 7) 250 | -10/Mines | Entered Materials 250 | -9/Materials | Evolved 2 slots: Utility x2 309 | -9/Materials | Build established: Mutant 600 | -9/Materials | Lost 4 parts (2n1u1w) 726 | -9/Materials | Discovered new exit (range 12) 834 | -9/Materials | Core integrity fell below 50% 921 | -9/Materials | Identified exit to Mines 922 | -9/Materials | Entered Mines 1052 | -9/Mines | Assisted by bots powering up and referring to "LRC-V3" 1099 | -9/Mines | Deemed a non-threat by the Exiles lab entrance 1099 | -9/Mines | Discovered new exit (range 5) 1109 | -9/Mines | Entered Exiles 1109 | -9/Exiles | Found Exiles lab abandoned 1109 | -9/Exiles | Accompanied by 3 allies 1369 | -9/Exiles | Discovered new exit (range 14) 1389 | -9/Exiles | Entered Mines 1389 | -8/Mines | Accompanied by 3 allies 1568 | -8/Mines | Found DCF Scrap (12 items) 1687 | -8/Mines | Discovered new exit (range 3) 1691 | -8/Mines | Entered Materials 1691 | -8/Materials | Evolved 2 slots: Propulsion x2 1988 | -8/Materials | Discovered new exit (range 10) 2076 | -8/Materials | Entered Factory 2076 | -7/Factory | Evolved 2 slots: Utility x1, Weapon x1 2670 | -7/Factory | Discovered new exit (range 5) 2684 | -7/Factory | Identified exit to Factory 2875 | -7/Factory | Entered another Factory area 2875 | -6/Factory | Evolved 2 slots: Power x1, Propulsion x1 3275 | -6/Factory | Discovered new exit (range 17) 3294 | -6/Factory | Identified exit to Extension 3374 | -6/Factory | Build established: Gunner 3788 | -6/Factory | Build established: Mutant 3868 | -6/Factory | Garrison activated, responded to threat 4365 | -6/Factory | Discovered new exit (range 5) 4369 | -6/Factory | Identified exit to Factory 4583 | -6/Factory | Entered another Factory area 4583 | -5/Factory | Evolved 2 slots: Utility x2 4680 | -5/Factory | Sucked down chute 4680 | -5/Factory | Entered Waste 4682 | -5/Waste | Spotted C-40 Crusher 4691 | -5/Waste | Spotted C-40 Crusher 4706 | -5/Waste | Spotted C-40 Crusher 4726 | -5/Waste | Spotted C-40 Crusher 4728 | -5/Waste | Spotted C-40 Crusher 4756 | -5/Waste | Spotted C-40 Crusher 4795 | -5/Waste | Crushed by Compactor (1 part destroyed, 1 dropped) 4829 | -5/Waste | Crushed by Compactor (1 part destroyed, 1 dropped) 4838 | -5/Waste | Crushed by Compactor (1 part destroyed, 2 dropped) 4841 | -5/Waste | Crushed by Compactor (1 part destroyed, 1 dropped) 4844 | -5/Waste | Crushed by Compactor (1 part destroyed, 1 dropped) 4849 | -5/Waste | Crushed by Compactor (1 part destroyed, 2 dropped) 4850 | -5/Waste | Discovered new exit (range 11) 4864 | -5/Waste | Entered Factory 4880 | -5/Factory | Lost 6 parts (3n1u2w) 4908 | -5/Factory | Spotted B-75 Beast 4977 | -5/Factory | Core integrity fell below 50% 5028 | -5/Factory | Core integrity fell below 20% 5032 | -5/Factory | Lost 6 parts (2n1u3w) 5089 | -5/Factory | Destroyed by S-27 Virus with Autogun Last Messages --------------- 05027_ Penetrated by Slug. 05029_ System corrupted: Matter fused (-9). 05030_ Penetrated by Slug. 05044_ Acquired Prototype Energy Cannon. 05044_ Identified Neutron Cannon. 05049_ ALERT: Potential suspicious activity detected, Programmers report to Factory Zone 8I. 05051_ System corrupted: Matter fused (-6). 05051_ Dropped Exp. Myomer Leg. 05063_ Dropped Imp. Coolant Injector. 05063_ Acquired Imp. System Restoration Module. 05070_ Triggered Blade Trap. 05070_ Massive razor-sharp blades shoot up from within the floor. 05070_ Enh. Optical Array severed. 05070_ Adv. Targeting Computer severed. 05071_ Slug penetrates Matter Pump. 05071_ Matter Pump disabled. 05071_ Slug penetrates Matter Pump. 05071_ Penetrated by Slug. 05082_ KJ5BYSH,HPX&=FH 6VXF<>OMZ4&NF7L4JOJ43US Map ----- +----------------------------------------------------+ | ?????????????????????????????????????????????????? | | ?????????????????????????????????????????????????? | | ?????????????????????????????????????????????????? | | ?????????????????????????????????????????????????? | | ????????????????????????????????????????????????? | | ?????????????????????????????????????????????????? | | ?????????????????????????????????????????????????? | | ?????????????????????????????????????????????????? | | ?????????????????????????????????????????????????? | | ?????????????????????????????????????????????????? | | ??????????????????????? ??????????????????? ???? | | ????????????????????? ??????????????????? ???? | | ??????????????????# ??????????????????# ???? | | ??????????????????# ??????????????????? ###? | | ??????????????????# ??????????????????? ? | | ??????????????????# ???????????????????# ? | | ??????????????????# ???????????????????# "" | | ??????????????????+ #??????????????????# "" | | ??????????????????# #################### "" | | ??????????????????# # [# " | | ??????????????????# # """ # " | | ??????????????????# # ""T"" # | | ??????????????????# # "" "" """ """ # | | ??????????????????# # """ """ #! | | ??????????????????# # """ """ # | | ??????????????????# @# / | | ??????????????????# + ###+# | | ??????????????????# ##################### | | ??????????????????# #???????????????????#/ | | ??????????????????# #???????????????????# | | ??????????????????# #???????????????????# | | ??????????????????# #???????????????????# "" | | ??????????????????# #???????????????????# "" | | ??????????????????# +???????????????????# F" | | ??????????????????# ss s ????????????????????# "" | | ??????????????????+ s s????????????????????# ?? | | ??????????????????# ????????????????????##?? | | ??????????????????# ??????????????????###### | | ??????????????????# ??????????????????# | | ??????????????????? ? ??????????????????# | | ???????????????????????###??????????????????# | | ????????????????????????????????????????????# | | ????????????????????????????????????????????# | | ????????????????????????????????????????????# | | ????????????????????????????????????????????# | | ????????????????????????????????????????????# | | ????????????????????????????????????????????###### | | ?????????????????????????????????????????????????? | | ?????????????????????????????????????????????????? | | ?????????????????????????????????????????????????? | +----------------------------------------------------+ Best States ------------- Heat Dissipation 61 Energy Generation 29 Energy Capacity 490 Matter Stores 300 Matter Capacity 300 Sight Range 22 Robot Scan Range 16 Terrain Scan Density 10 Jamming Range 12 Cloak Strength 2 Armor Coverage 300 Evasion (%) 55 Targeting Accuracy 14 Recoil Reduction 1 Item Schematics ----------------- None Robot Schematics ------------------ None Fabricated ------------ Nothing Repaired ---------- Nothing Alien Tech Used ----------------- None Achievements -------------- Short-term Sacrifices Challenges ------------ None Game ------ Seed ActiveGrenadeMagmablaster Manual? 0 Play Time 01:06:39 Cumulative 95.8 hours Start 2025.10.16 @ 14:25:48 End 2025.10.20 @ 14:42:00 Sessions 12 Manual Loads 0 Difficulty Rogue Special Mode None Game No. 93 Rogue 93 Adventurer 0 Explorer 0 Win Type - Total 0 Types 0/0/0/0/0/0/0/0/0/0 Lore% 21 Gallery% 42 Achievement% 34 Wizard Run 0 Options --------- Layout 1 ASCII 0 Keyboard 1 Movement Numpad Keybinds 0 Fullscreen 1 Font 32/SmallcapsGlow Map View 77x35 Zoom Use 0% Tactical HUD 1 Map Filters NONE Filters NONE Steam 1 RUN: 1eee357d-a155-4919-8832-df7f67402462